[Event "Klass I-IV 2025"]
[Site "Uppsala, Sweden"]
[Date "2025.07.06"]
[Round "7.2"]
[White "Garner, Marten"]
[Black "Lindebaum, Andre J"]
[Result "1/2-1/2"]
[TimeControl "90 min for 40 move + 30 min with an increment of 30 sec starting move 1"]
[WhiteFideId "1712136"]
[BlackFideId "24647772"]
[WhiteElo "1824"]
[BlackElo "1776"]

1. d4 {[%clk 01:30:55]} {[%emt 00:00:03]} b5 {[%clk 01:30:53]} {[%emt
00:00:08]} 2. Nf3 {[%clk 01:31:06]} {[%emt 00:00:19]} Bb7 {[%clk 01:31:18]}
{[%emt 00:00:06]} 3. Bf4 {[%clk 01:30:20]} {[%emt 00:01:13]} Nf6 {[%clk
01:30:25]} {[%emt 00:01:25]} 4. e3 {[%clk 01:30:20]} {[%emt 00:00:29]} c5
{[%clk 01:29:19]} {[%emt 00:01:38]} 5. dxc5 {[%clk 01:26:03]} {[%emt 00:04:47]}
e6 {[%clk 01:26:05]} {[%emt 00:03:44]} 6. Nbd2 {[%clk 01:22:11]} {[%emt
00:04:21]} Bxc5 {[%clk 01:22:06]} {[%emt 00:04:30]} 7. Bxb5 {[%clk 01:21:33]}
{[%emt 00:01:07]} Qb6 {[%clk 01:22:10]} {[%emt 00:00:27]} 8. Be2 {[%clk
01:18:04]} {[%emt 00:03:57]} d5 {[%clk 01:12:18]} {[%emt 00:10:24]} 9. O-O
{[%clk 01:17:42]} {[%emt 00:00:50]} O-O {[%clk 01:12:34]} {[%emt 00:00:15]} 10.
Nb3 {[%clk 01:15:32]} {[%emt 00:02:39]} Be7 {[%clk 01:08:17]} {[%emt 00:04:48]}
11. h3 {[%clk 01:13:12]} {[%emt 00:02:48]} Nc6 {[%clk 01:08:11]} {[%emt
00:00:38]} 12. Ne5 {[%clk 01:11:12]} {[%emt 00:02:28]} Nxe5 {[%clk 01:04:19]}
{[%emt 00:04:24]} 13. Bxe5 {[%clk 01:11:34]} {[%emt 00:00:07]} Ne4 {[%clk
01:03:28]} {[%emt 00:01:23]} 14. Qd4 {[%clk 01:08:32]} {[%emt 00:03:30]} Bf6
{[%clk 00:54:29]} {[%emt 00:09:31]} 15. Bxf6 {[%clk 01:06:59]} {[%emt
00:02:02]} Nxf6 {[%clk 00:53:43]} {[%emt 00:01:17]} 16. Qxb6 {[%clk 01:06:20]}
{[%emt 00:01:08]} axb6 {[%clk 00:54:11]} {[%emt 00:00:03]} 17. Nd4 {[%clk
01:05:01]} {[%emt 00:01:46]} Ne4 {[%clk 00:52:13]} {[%emt 00:02:30]} 18. Rfc1
{[%clk 01:00:01]} {[%emt 00:05:28]} Nd6 {[%clk 00:43:51]} {[%emt 00:08:54]} 19.
Bd3 {[%clk 00:47:39]} {[%emt 00:12:49]} Ra5 {[%clk 00:42:30]} {[%emt 00:01:54]}
20. Nb3 {[%clk 00:41:41]} {[%emt 00:06:26]} Ra4 {[%clk 00:42:44]} {[%emt
00:00:15]} 21. Nd2 {[%clk 00:39:58]} {[%emt 00:02:13]} Rfa8 {[%clk 00:39:46]}
{[%emt 00:03:31]} 22. a3 {[%clk 00:39:35]} {[%emt 00:00:52]} Ba6 {[%clk
00:28:57]} {[%emt 00:11:20]} 23. Nf3 {[%clk 00:27:56]} {[%emt 00:12:08]} Bb7
{[%clk 00:28:22]} {[%emt 00:01:07]} 24. Nd4 {[%clk 00:27:13]} {[%emt 00:01:11]}
R4a5 {[%clk 00:23:17]} {[%emt 00:05:36]} 25. c4 {[%clk 00:20:15]} {[%emt
00:07:29]} dxc4 {[%clk 00:16:49]} {[%emt 00:06:57]} 26. Bxc4 {[%clk 00:20:23]}
{[%emt 00:00:21]} Nxc4 {[%clk 00:15:01]} {[%emt 00:02:19]} 27. Rxc4 {[%clk
00:20:45]} {[%emt 00:00:07]} Rg5 {[%clk 00:09:45]} {[%emt 00:05:46]} 28. g3
{[%clk 00:20:15]} {[%emt 00:01:01]} Bd5 {[%clk 00:08:59]} {[%emt 00:01:16]} 29.
Rb4 {[%clk 00:18:32]} {[%emt 00:02:11]} e5 {[%clk 00:08:10]} {[%emt 00:01:22]}
30. Nb5 {[%clk 00:17:21]} {[%emt 00:01:37]} Bf3 {[%clk 00:06:12]} {[%emt
00:02:31]} 31. Rc1 {[%clk 00:14:51]} {[%emt 00:02:57]} h5 {[%clk 00:06:32]}
{[%emt 00:00:14]} 32. Nd6 {[%clk 00:11:33]} {[%emt 00:03:46]} Rg6 {[%clk
00:05:11]} {[%emt 00:01:53]} 33. Nf5 {[%clk 00:07:30]} {[%emt 00:04:30]} Kh7
{[%clk 00:04:17]} {[%emt 00:01:26]} 34. Nh4 {[%emt 00:00:17]} Rc6 {[%clk
00:03:49]} {[%emt 00:00:57]} 35. Rxc6 {[%clk 00:06:42]} {[%emt 00:01:33]} Bxc6
{[%clk 00:04:17]} {[%emt 00:00:02]} 36. Rxb6 {[%clk 00:06:07]} {[%emt
00:01:05]} Be4 {[%clk 00:04:34]} {[%emt 00:00:12]} 37. f3 {[%clk 00:05:44]}
{[%emt 00:00:54]} Bd3 {[%clk 00:04:26]} {[%emt 00:00:37]} 38. Rd6 {[%clk
00:04:23]} {[%emt 00:01:49]} e4 {[%clk 00:03:32]} {[%emt 00:01:27]} 39. fxe4
{[%clk 00:04:21]} {[%emt 00:00:32]} Bxe4 {[%clk 00:04:00]} {[%emt 00:00:02]} 40.
Kf2 {[%clk 00:03:36]} {[%emt 00:01:12]} Rc8 {[%clk 00:00:45]} {[%emt 00:03:48]}
41. Rd2 {[%clk 00:03:40]} {[%emt 00:00:23]} Rc6 {[%clk 00:29:43]} {[%emt
00:01:33]} 42. Ng2 {[%clk 00:25:49]} {[%emt 00:08:20]} Rf6+ {[%clk 00:28:35]}
{[%emt 00:01:41]} 43. Kg1 {[%clk 00:25:30]} {[%emt 00:00:44]} Rf3 {[%clk
00:27:08]} {[%emt 00:02:01]} 44. Kh2 {[%clk 00:25:13]} {[%emt 00:00:47]} g5
{[%clk 00:26:43]} {[%emt 00:00:56]} 45. b4 {[%clk 00:24:56]} {[%emt 00:00:47]}
Rf1 {[%clk 00:25:21]} {[%emt 00:01:48]} 46. a4 {[%clk 00:15:46]} {[%emt
00:09:44]} Ra1 {[%clk 00:21:47]} {[%emt 00:04:03]} 47. b5 {[%clk 00:15:22]}
{[%emt 00:00:55]} f5 {[%clk 00:21:47]} {[%emt 00:00:31]} 48. b6 {[%clk
00:12:31]} {[%emt 00:03:21]} Rxa4 {[%clk 00:21:09]} {[%emt 00:01:07]} 49. Rb2
{[%clk 00:12:30]} {[%emt 00:00:30]} Ra8 {[%clk 00:20:08]} {[%emt 00:01:30]} 50.
Kg1 {[%clk 00:08:25]} {[%emt 00:04:35]} Kg7 {[%clk 00:10:28]} {[%emt 00:10:11]}
51. Kf2 {[%clk 00:07:39]} {[%emt 00:01:15]} Kf6 {[%clk 00:06:54]} {[%emt
00:04:06]} 52. Ne1 {[%clk 00:07:34]} {[%emt 00:00:34]} Rb8 {[%clk 00:03:31]}
{[%emt 00:03:55]} 53. Nf3 {[%clk 00:07:33]} {[%emt 00:00:30]} g4 {[%clk
00:02:39]} {[%emt 00:01:22]} 54. Nd2 {[%clk 00:05:59]} {[%emt 00:02:03]} gxh3
{[%clk 00:02:01]} {[%emt 00:01:09]} 55. Nxe4+ {[%clk 00:06:03]} {[%emt
00:00:26]} fxe4 {[%clk 00:02:30]} {[%emt 00:00:02]} 56. Kg1 {[%clk 00:06:15]}
{[%emt 00:00:16]} Kf5 {[%clk 00:01:58]} {[%emt 00:01:03]} 57. Kh2 {[%clk
00:05:47]} {[%emt 00:00:58]} Kg4 {[%clk 00:02:15]} {[%emt 00:00:13]} 58. b7
{[%clk 00:05:50]} {[%emt 00:00:27]} Kf3 {[%clk 00:02:23]} {[%emt 00:00:21]} 59.
Rb3 {[%clk 00:06:07]} {[%emt 00:00:14]} Kg4 {[%clk 00:02:11]} {[%emt 00:00:42]}
60. Rb5 {[%clk 00:02:02]} {[%emt 00:04:34]} Kf3 {[%clk 00:02:06]} {[%emt
00:00:35]} 61. Rb3 {[%clk 00:01:06]} {[%emt 00:01:27]} Kg4 {[%clk 00:01:56]}
{[%emt 00:00:40]} 62. Rb5 {[%clk 00:00:47]} {[%emt 00:00:50]} Kf3 {[%emt
00:00:53]} 1/2-1/2

[Event "Klass I-IV 2025"]
[Site "Uppsala, Sweden"]
[Date "2025.07.06"]
[Round "7.3"]
[White "Muntean, Adrian"]
[Black "Morell, Adam"]
[Result "1/2-1/2"]
[TimeControl "90 min for 40 move + 30 min with an increment of 30 sec starting move 1"]
[WhiteFideId "1054457"]
[BlackFideId "1736760"]
[WhiteElo "1667"]
[BlackElo "1669"]

1. e4 {[%clk 01:30:56]} {[%emt 00:00:02]} c5 {[%clk 01:30:11]} {[%emt
00:00:50]} 2. c3 {[%clk 01:30:55]} {[%emt 00:00:31]} Nf6 {[%clk 01:30:30]}
{[%emt 00:00:10]} 3. e5 {[%clk 01:31:09]} {[%emt 00:00:17]} Nd5 {[%clk
01:30:50]} {[%emt 00:00:10]} 4. d4 {[%clk 01:30:39]} {[%emt 00:01:00]} cxd4
{[%clk 01:31:14]} {[%emt 00:00:06]} 5. cxd4 {[%clk 01:30:56]} {[%emt 00:00:13]}
d6 {[%clk 01:29:48]} {[%emt 00:01:56]} 6. Nf3 {[%clk 01:30:16]} {[%emt
00:01:11]} Nc6 {[%clk 01:29:33]} {[%emt 00:00:44]} 7. Bd3 {[%clk 01:30:11]}
{[%emt 00:00:35]} e6 {[%clk 01:29:14]} {[%emt 00:00:49]} 8. a3 {[%clk
01:30:21]} {[%emt 00:00:21]} Be7 {[%clk 01:28:26]} {[%emt 00:01:17]} 9. O-O
{[%clk 01:30:21]} {[%emt 00:00:30]} O-O {[%clk 01:28:25]} {[%emt 00:00:31]} 10.
Qc2 {[%clk 01:30:39]} {[%emt 00:00:12]} f5 {[%clk 01:24:24]} {[%emt 00:04:31]}
11. exf6 {[%emt 00:02:18]} Nxf6 {[%clk 01:24:17]} {[%emt 00:00:36]} 12. Bg5
{[%clk 01:28:58]} {[%emt 00:00:24]} h6 {[%clk 01:19:53]} {[%emt 00:04:53]} 13.
Bh4 {[%clk 01:27:26]} {[%emt 00:02:03]} Bd7 {[%clk 01:16:34]} {[%emt 00:03:49]}
14. Nc3 {[%clk 01:26:22]} {[%emt 00:01:34]} Rc8 {[%clk 01:14:20]} {[%emt
00:02:44]} 15. Rac1 {[%clk 01:23:03]} {[%emt 00:03:49]} a6 {[%clk 01:12:16]}
{[%emt 00:02:34]} 16. Rfe1 {[%clk 01:23:18]} {[%emt 00:00:14]} 1/2-1/2